fUSD/lending_fUSD_20250504
["ID","MTS","AMOUNT","RATE_DAILY","PERIOD"]
[359870715,1746390640325,-150.0,0.00019916,2]
[359870716,1746390640335,-150.0,0.0001992,2]
[359870717,1746390640345,-150.0,0.0001992,2]
[359870718,1746390640353,-150.0,0.0001992,2]
[359870719,1746390640363,-150.0,0.00019922,2]
[359870720,1746390640374,-150.0,0.00019924,2]
[359870721,1746390640384,-150.0,0.00019924,2]
[359870722,1746390640393,-150.0,0.00019924,2]
[359870723,1746390640403,-150.0,0.00019925,2]
[359870724,1746390640413,-150.0,0.00019928,2]
[359870725,1746390640422,-150.0,0.00019931,2]
[359870726,1746390640431,-150.0,0.00019931,2]
[359870727,1746390640441,-150.0,0.00019933,2]
[359870728,1746390640450,-150.0,0.00019943,2]
[359870729,1746390640460,-150.0,0.00019944,2]
[359870730,1746390640469,-150.0,0.00019945,2]
[359870731,1746390640479,-150.0,0.00019947,2]
[359870732,1746390640488,-150.0,0.00019947,2]
[359870733,1746390640497,-150.0,0.00019948,2]
[359870734,1746390640506,-150.0,0.00019951,2]
[359870735,1746390640516,-150.0,0.00019953,2]
[359870736,1746390640525,-150.0,0.00019959,2]
[359870737,1746390640535,-150.0,0.00019962,2]
[359870738,1746390640545,-150.0,0.00019962,2]
[359870739,1746390640554,-150.0,0.00019963,2]
[359870740,1746390640564,-150.0,0.00019963,2]
[359870741,1746390640573,-150.0,0.00019963,2]
[359870742,1746390640583,-150.0,0.00019963,2]
[359870743,1746390640593,-150.0,0.00019966,2]
[359870744,1746390640603,-150.0,0.00019968,2]
[359870745,1746390640612,-150.0,0.00019969,2]
[359870746,1746390640625,-500.0,0.00019973,2]
[359870747,1746390640634,-500.0,0.00019973,2]
[359870748,1746390640643,-500.0,0.00019973,2]
[359870749,1746390640653,-150.0,0.00019973,2]
[359870750,1746390640662,-150.0,0.00019974,2]
[359870751,1746390640672,-150.0,0.00019975,2]
[359870752,1746390640682,-150.0,0.00019975,2]
[359870753,1746390640692,-150.0,0.00019975,2]
[359870754,1746390640701,-150.0,0.00019977,2]
[359870755,1746390640711,-150.0,0.00019978,2]
[359870756,1746390640720,-150.0,0.00019979,2]
[359870757,1746390640730,-150.0,0.00019981,2]
[359870758,1746390640739,-150.0,0.00019982,2]
[359870759,1746390640749,-797.0,0.00019983,2]
[359870760,1746390640758,-150.0,0.00019983,2]
[359870761,1746390640768,-150.0,0.00019985,2]
[359870762,1746390640777,-207.791,0.00019986,2]
[359870763,1746390640787,-11663.8425268,0.00019986,2]
[359870764,1746390640796,-150.0,0.00019987,2]
[359870765,1746390640806,-840.0,0.00019989,2]
[359870766,1746390640815,-150.0,0.00019992,2]
[359870767,1746390640824,-170082.61064074,0.00019993,2]
[359870768,1746390640833,-150.0,0.00019995,2]
[359870769,1746390640843,-470.0,0.00019996,2]
[359870770,1746390640852,-470.0,0.00019996,2]
[359870771,1746390640861,-470.0,0.00019996,2]
[359870772,1746390640871,-470.0,0.00019996,2]
[359870773,1746390640880,-470.0,0.00019996,2]
[359870774,1746390640890,-470.0,0.00019996,2]
[359870775,1746390640899,-470.0,0.00019996,2]
[359870776,1746390640909,-450.0,0.00019996,2]
[359870777,1746390640919,-470.0,0.00019996,2]
[359870778,1746390640928,-470.0,0.00019996,2]
[359870779,1746390640939,-470.0,0.00019996,2]
[359870780,1746390640949,-470.0,0.00019996,2]
[359870781,1746390640958,-541.79853433,0.00019996,2]
[359870782,1746390640967,-450.0,0.00019996,2]
[359870783,1746390640977,-470.0,0.00019996,2]
[359870784,1746390640986,-470.0,0.00019996,2]
[359870785,1746390640996,-470.0,0.00019996,2]
[359870786,1746390641005,-470.0,0.00019996,2]
[359870787,1746390641014,-470.0,0.00019996,2]
[359870788,1746390641024,-450.0,0.00019996,2]
[359870789,1746390641034,-450.0,0.00019996,2]
[359870790,1746390641043,-470.0,0.00019996,2]
[359870791,1746390641053,-250.0,0.00019996,2]
[359870792,1746390641063,-250.0,0.00019996,2]
[359870793,1746390641073,-450.0,0.00019996,2]
[359870794,1746390641082,-500.0,0.00019996,2]
[359870795,1746390641091,-450.0,0.00019996,2]
[359870796,1746390641101,-450.0,0.00019996,2]
[359870797,1746390641111,-450.0,0.00019996,2]
[359870798,1746390641120,-450.0,0.00019996,2]
[359870799,1746390641130,-450.0,0.00019996,2]
[359870800,1746390641139,-483.71,0.00019996,2]
[359870801,1746390641148,-450.0,0.00019996,2]
[359870802,1746390641157,-450.0,0.00019996,2]
[359870803,1746390641167,-450.0,0.00019996,2]
[359870804,1746390641176,-450.0,0.00019996,2]
[359870805,1746390641186,-450.0,0.00019996,2]
[359870806,1746390641196,-450.0,0.00019996,2]
[359870807,1746390641205,-450.0,0.00019996,2]
[359870808,1746390641214,-470.0,0.00019996,2]
[359870809,1746390641223,-470.0,0.00019996,2]
[359870810,1746390641234,-470.0,0.00019996,2]
[359870811,1746390641243,-470.0,0.00019996,2]
[359870812,1746390641252,-470.0,0.00019996,2]
[359870813,1746390641263,-470.0,0.00019996,2]
[359870814,1746390641272,-470.0,0.00019996,2]
[359870815,1746390641282,-470.0,0.00019996,2]
[359870816,1746390641295,-470.0,0.00019996,2]
[359870817,1746390641304,-470.0,0.00019996,2]
[359870818,1746390641314,-319.06708293,0.00019996,2]
[359870819,1746390641323,-568.56,0.00019996,2]
[359870820,1746390641332,-470.0,0.00019996,2]
[359870821,1746390641341,-470.0,0.00019996,2]
[359870822,1746390641514,-470.0,0.00019996,2]
[359870823,1746390641525,-470.0,0.00019996,2]
[359870824,1746390641535,-470.0,0.00019996,2]
[359870825,1746390641544,-470.0,0.00019996,2]
[359870826,1746390641554,-450.0,0.00019996,2]
[359870827,1746390641563,-470.0,0.00019996,2]
[359870828,1746390641573,-450.0,0.00019996,2]
[359870829,1746390641582,-450.0,0.00019996,2]
[359870830,1746390641592,-470.0,0.00019996,2]
[359870831,1746390641602,-470.0,0.00019996,2]
[359870832,1746390641612,-470.0,0.00019996,2]
[359870833,1746390641621,-470.0,0.00019996,2]
[359870834,1746390641631,-450.0,0.00019996,2]
[359870835,1746390641641,-490.0,0.00019996,2]
[359870836,1746390641650,-450.0,0.00019996,2]
[359870837,1746390641660,-524.67,0.00019996,2]
[359870838,1746390641669,-450.0,0.00019996,2]
[359870839,1746390641679,-227.28195866,0.00019996,2]
[359870840,1746390641689,-450.0,0.00019996,2]
[359870841,1746390641698,-510.0,0.00019996,2]
[359870842,1746390641707,-490.0,0.00019996,2]
[359870843,1746390641717,-490.0,0.00019996,2]
[359870844,1746390641727,-490.0,0.00019996,2]
[359870845,1746390641736,-433.59826765,0.00019996,2]
[359870846,1746390641745,-450.0,0.00019996,2]
[359870847,1746390641755,-450.0,0.00019996,2]
[359870848,1746390641764,-510.0,0.00019996,2]
[359870849,1746390641773,-490.0,0.00019996,2]
[359870850,1746390641782,-490.0,0.00019996,2]
[359870851,1746390641791,-450.0,0.00019996,2]
[359870852,1746390641801,-490.0,0.00019996,2]
[359870853,1746390641810,-450.0,0.00019996,2]
[359870854,1746390641819,-160.2752072,0.00019996,2]
[359870855,1746390641828,-450.0,0.00019996,2]
[359870856,1746390641837,-450.0,0.00019996,2]
[359870857,1746390641847,-510.0,0.00019996,2]
[359870858,1746390641856,-450.0,0.00019996,2]
[359870859,1746390641866,-510.0,0.00019996,2]
[359870860,1746390641876,-450.0,0.00019996,2]
[359870861,1746390641885,-450.0,0.00019996,2]
[359870862,1746390641895,-510.0,0.00019996,2]
[359870863,1746390641905,-510.0,0.00019996,2]
[359870864,1746390641914,-450.0,0.00019996,2]
[359870865,1746390641923,-450.0,0.00019996,2]
[359870866,1746390641932,-450.0,0.00019996,2]
[359870867,1746390641942,-510.0,0.00019996,2]
[359870868,1746390641955,-510.0,0.00019996,2]
[359870869,1746390641965,-315.94169893,0.00019996,2]
[359870870,1746390641986,-166.24449861,0.00019899,2]
[359870871,1746390641996,-134.05830107,0.00019996,2]
[359870872,1746390642005,-510.0,0.00019996,2]
[359870873,1746390642015,-450.0,0.00019996,2]
[359870874,1746390642024,-450.0,0.00019996,2]
[359870875,1746390642034,-510.0,0.00019996,2]
[359870876,1746390642043,-450.0,0.00019996,2]
[359870877,1746390642053,-450.0,0.00019996,2]
[359870878,1746390642062,-51.82476499,0.00019996,2]
[359870879,1746390642093,-150.0,0.00019846,2]
[359870880,1746390642103,-150.0,0.00019931,2]
[359870881,1746390642112,-150.0,0.00019967,2]
[359870882,1746390642122,-458.17523501,0.00019996,2]
[359870883,1746390642131,-450.0,0.00019996,2]
[359870884,1746390642140,-510.0,0.00019996,2]
[359870885,1746390642149,-309.42476499,0.00019996,2]
[359870886,1746390642186,-150.0,0.00019748,2]
[359870887,1746390642195,-150.0,0.00019863,2]
[359870888,1746390642204,-150.0,0.00019885,2]
[359870889,1746390642213,-150.0,0.00019957,2]
[359870890,1746390642222,-29.75825643,0.00019996,2]
[359870891,1746390642232,-450.0,0.00019996,2]
[359870892,1746390642241,-450.0,0.00019996,2]
[359870893,1746390642251,-510.0,0.00019996,2]
[359870894,1746390642260,-450.0,0.00019996,2]
[359870895,1746390642270,-510.0,0.00019996,2]
[359870896,1746390642279,-450.0,0.00019996,2]
[359870897,1746390642292,-510.0,0.00019996,2]
[359870898,1746390642301,-450.0,0.00019996,2]
[359870899,1746390642310,-510.0,0.00019996,2]
[359870900,1746390642319,-450.0,0.00019996,2]
[359870901,1746390642329,-192.15410395,0.00019996,2]
[359870911,1746390644488,-150.0,0.00019735,2]
[359870912,1746390644498,-138.869385,0.00019739,2]
[359870932,1746390645971,-11.130615,0.00019739,2]
[359870934,1746390645980,-150.0,0.00019745,2]
[359870936,1746390645990,-150.0,0.00019749,2]
[359870937,1746390645999,-150.0,0.00019762,2]
[359870940,1746390646008,-150.0,0.00019771,2]
[359870942,1746390646018,-150.0,0.00019775,2]
[359870943,1746390646031,-132.769385,0.00019781,2]
[359870946,1746390646049,-17.230615,0.00019781,2]
[359870948,1746390646058,-150.0,0.00019781,2]
[359870950,1746390646068,-150.0,0.00019782,2]
[359870952,1746390646078,-150.0,0.00019803,2]
[359870954,1746390646087,-150.0,0.00019807,2]
[359870956,1746390646096,-150.0,0.00019817,2]
[359870958,1746390646105,-194.29918371,0.00019818,2]
[359870960,1746390646115,-150.0,0.00019823,2]
[359870962,1746390646124,-150.0,0.00019825,2]
[359870964,1746390646134,-150.0,0.00019834,2]
[359870966,1746390646143,-150.0,0.0001984,2]
[359870968,1746390646153,-150.0,0.00019843,2]
[359870970,1746390646162,-150.0,0.00019852,2]
[359870972,1746390646171,-150.0,0.0001986,2]
[359870974,1746390646180,-150.0,0.00019861,2]
[359870976,1746390646190,-150.0,0.00019863,2]
[359870978,1746390646199,-150.0,0.00019871,2]
[359870980,1746390646208,-150.0,0.00019877,2]
[359870982,1746390646218,-150.0,0.00019878,2]
[359870984,1746390646227,-150.0,0.0001988,2]
[359870986,1746390646235,-150.0,0.00019883,2]
[359870988,1746390646244,-150.0,0.00019888,2]
[359870990,1746390646254,-150.0,0.00019889,2]
[359870992,1746390646263,-150.0,0.00019897,2]
[359870994,1746390646272,-166.24449861,0.00019899,2]
[359870996,1746390646280,-150.0,0.00019912,2]
[359870998,1746390646292,-150.0,0.00019913,2]
[359871000,1746390646301,-150.0,0.00019915,2]
[359871002,1746390646310,-150.0,0.00019916,2]
[359871004,1746390646319,-150.0,0.00019926,2]
[359871006,1746390646329,-150.0,0.00019927,2]
[359871008,1746390646338,-150.0,0.00019946,2]
[359871010,1746390646348,-150.0,0.00019958,2]
[359871011,1746390646357,-150.0,0.00019964,2]
[359871014,1746390646367,-150.0,0.00019965,2]
[359871016,1746390646377,-150.0,0.00019967,2]
[359871018,1746390646386,-150.0,0.00019981,2]
[359871019,1746390646396,-150.0,0.00019983,2]
[359871022,1746390646405,-150.0,0.00019987,2]
[359871023,1746390646414,-150.0,0.00019988,2]
[359871025,1746390646423,-150.0,0.00019988,2]
[359871027,1746390646432,-150.0,0.00019992,2]
[359871028,1746390646441,-150.0,0.00019993,2]
[359871029,1746390646451,-257.84589605,0.00019996,2]
[359871030,1746390646460,-450.0,0.00019996,2]
[359871031,1746390646470,-450.0,0.00019996,2]
[359871032,1746390646479,-450.0,0.00019996,2]
[359871033,1746390646490,-510.0,0.00019996,2]
[359871034,1746390646501,-490.0,0.00019996,2]
[359871035,1746390646511,-450.0,0.00019996,2]
[359871036,1746390646520,-510.0,0.00019996,2]
[359871037,1746390646529,-450.0,0.00019996,2]
[359871038,1746390646539,-554.34779342,0.00019996,2]
[359871039,1746390646548,-450.0,0.00019996,2]
[359871040,1746390646558,-510.0,0.00019996,2]
[359871041,1746390646567,-178.04704092,0.00019996,2]
[359871042,1746390646576,-450.0,0.00019996,2]
[359871043,1746390646586,-510.0,0.00019996,2]
[359871044,1746390646595,-490.0,0.00019996,2]
[359871045,1746390646605,-450.0,0.00019996,2]
[359871046,1746390646614,-510.0,0.00019996,2]
[359871047,1746390646624,-450.0,0.00019996,2]
[359871048,1746390646633,-510.0,0.00019996,2]
[359871049,1746390646642,-490.0,0.00019996,2]
[359871050,1746390646651,-301.55924443,0.00019996,2]
[359871051,1746390787855,150.050505,0.0003,30]
[359871052,1746390794020,150.050505,0.0003,31]
[359871053,1746390798223,150.050505,0.0003,32]
[359871054,1746390807068,150.050505,0.0003,33]
[359871055,1746390837975,150.050505,0.0003,34]
[359871056,1746390868667,150.050505,0.0003,30]
[359871057,1746390873559,150.050505,0.0003,31]
[359871058,1746390893669,150.050505,0.0003,32]
[359871059,1746390900193,150.050505,0.0003,33]
[359871060,1746390916821,150.050505,0.0003,34]
[359871061,1746391097143,428.37,0.00017004,2]
[359871062,1746391097384,428.37,0.00019268,2]
[359871063,1746391165471,250.0,0.00017,2]
[359871064,1746391166538,300.0,0.00019,2]
[359871065,1746391538911,1000.0,0.00018917,2]
[359871075,1746391831666,-200.0,0.00019728,2]
[359871076,1746391831676,-120.93353656,0.00019728,2]
[359871077,1746391831722,-79.06646344,0.00019728,2]
[359871078,1746391831731,-250.0,0.00019728,2]
[359871079,1746391831740,-150.0,0.00019741,2]
[359871080,1746391831749,-188.08109784,0.00019762,2]
[359871081,1746391831758,-632.81121136,0.00019762,2]
[359871082,1746391831767,-150.0,0.00019762,2]
[359871083,1746391831776,-115.55723051,0.00019773,2]
[359871084,1746391831788,-34.44276949,0.00019773,2]
[359871085,1746391831797,-150.0,0.00019794,2]
[359871086,1746391831806,-207.4,0.00019796,2]
[359871087,1746391831815,-160.55823,0.000198,23]
[359871088,1746391831824,-92.40065058,0.00019801,2]
[359871089,1746391831839,-57.59934942,0.00019801,2]
[359871090,1746391831849,-150.0,0.00019826,2]
[359871091,1746391831858,-150.0,0.00019829,2]
[359871092,1746391831867,-150.0,0.00019845,2]
[359871093,1746391831876,-150.0,0.00019849,2]
[359871094,1746391831884,-10.99207904,0.00019863,2]
[359871095,1746391831943,-139.00792096,0.00019863,2]
[359871096,1746391831952,-1200.0,0.00019895,2]
[359871097,1746391831962,-534.5893,0.00019896,2]
[359871098,1746391831971,-300.0,0.00019896,2]
[359871099,1746391831980,-1469.3792,0.00019897,2]
[359871100,1746391831989,-584.41120523,0.00019897,2]
[359871101,1746391831998,-1453.65055713,0.00019897,2]
[359871103,1746391832007,-194.55219148,0.00019897,2]
[359871105,1746391832016,-1453.65055704,0.00019897,2]
[359871107,1746391832026,-1453.65055704,0.00019898,2]
[359871108,1746391832035,-162.9045559,0.00019898,2]
[359871109,1746391832045,-1453.65055704,0.00019898,2]
[359871110,1746391832055,-1453.65055704,0.00019898,2]
[359871111,1746391832064,-1453.65055704,0.00019899,2]
[359871112,1746391832073,-850.0,0.00019899,2]
[359871113,1746391832083,-1453.65055704,0.00019899,2]
[359871114,1746391832092,-1453.65055704,0.00019899,2]
[359871115,1746391832101,-1453.65055704,0.000199,2]
[359871116,1746391832110,-162.9045559,0.000199,2]
[359871117,1746391832119,-6300.0491837,0.000199,2]
[359871118,1746391832128,-1453.65055704,0.000199,2]
[359871119,1746391832138,-150.0,0.00019907,2]
[359871120,1746391832147,-150.0,0.00019942,2]
[359871121,1746391832156,-166.232,0.00019968,2]
[359871122,1746391832165,-500.0,0.00019973,2]
[359871123,1746391832174,-500.0,0.00019973,2]
[359871124,1746391832183,-500.0,0.00019973,2]
[359871125,1746391832192,-8067.95433518,0.00019976,2]
[359871126,1746391832203,-624.79046279,0.00019976,2]
[359871127,1746391832214,-6603.99455539,0.00019976,2]
[359871128,1746391832223,-797.0,0.00019983,2]
[359871129,1746391832232,-878.0,0.00019983,2]
[359871130,1746391832242,-500.0,0.00019985,2]
[359871131,1746391832251,-500.0,0.00019985,2]
[359871132,1746391832261,-500.0,0.00019985,2]
[359871133,1746391832270,-500.0,0.00019985,2]
[359871134,1746391832452,-500.0,0.00019985,2]
[359871135,1746391832462,-500.0,0.00019985,2]
[359871136,1746391832471,-500.0,0.00019985,2]
[359871137,1746391832481,-500.0,0.00019985,2]
[359871138,1746391832490,-500.0,0.00019985,2]
[359871139,1746391832499,-500.0,0.00019985,2]
[359871140,1746391832508,-500.0,0.00019985,2]
[359871141,1746391832518,-500.0,0.00019985,2]
[359871142,1746391832528,-500.0,0.00019985,2]
[359871143,1746391832537,-500.0,0.00019985,2]
[359871144,1746391832547,-500.0,0.00019985,2]
[359871145,1746391832556,-500.0,0.00019985,2]
[359871146,1746391832566,-500.0,0.00019985,2]
[359871147,1746391832576,-500.0,0.00019985,2]
[359871148,1746391832586,-500.0,0.00019985,2]
[359871149,1746391832596,-269.5072417,0.00019985,2]
[359871150,1746391832605,-500.0,0.00019985,2]
[359871151,1746391832615,-150.0,0.00019986,2]
[359871152,1746391832624,-6568.1680979,0.00019986,2]
[359871153,1746391832634,-1973.9229791,0.00019992,2]
[359871154,1746391832645,-1000.0,0.00019995,2]
[359871155,1746391832657,-450.0,0.00019996,2]
[359871156,1746391832667,-450.0,0.00019996,2]
[359871157,1746391832677,-450.0,0.00019996,2]
[359871158,1746391832687,-450.0,0.00019996,2]
[359871159,1746391832697,-450.0,0.00019996,2]
[359871160,1746391832706,-450.0,0.00019996,2]
[359871161,1746391832715,-450.0,0.00019996,2]
[359871162,1746391832724,-450.0,0.00019996,2]
[359871163,1746391832733,-450.0,0.00019996,2]
[359871164,1746391832742,-450.0,0.00019996,2]
[359871165,1746391832751,-450.0,0.00019996,2]
[359871166,1746391832761,-450.0,0.00019996,2]
[359871167,1746391832770,-450.0,0.00019996,2]
[359871168,1746391832779,-450.0,0.00019996,2]
[359871169,1746391832788,-450.0,0.00019996,2]
[359871170,1746391832798,-179.18400566,0.00019996,2]
[359871171,1746391832807,-450.0,0.00019996,2]
[359871172,1746391832817,-450.0,0.00019996,2]
[359871173,1746391832826,-450.0,0.00019996,2]
[359871174,1746391832836,-450.0,0.00019996,2]
[359871175,1746391832846,-450.0,0.00019996,2]
[359871176,1746391832855,-450.0,0.00019996,2]
[359871177,1746391832864,-450.0,0.00019996,2]
[359871178,1746391832873,-450.0,0.00019996,2]
[359871179,1746391832883,-450.0,0.00019996,2]
[359871180,1746391832891,-450.0,0.00019996,2]
[359871181,1746391832901,-450.0,0.00019996,2]
[359871182,1746391832910,-450.0,0.00019996,2]
[359871183,1746391832919,-450.0,0.00019996,2]
[359871184,1746391832929,-450.0,0.00019996,2]
[359871185,1746391832938,-450.0,0.00019996,2]
[359871186,1746391832948,-490.0,0.00019996,2]
[359871187,1746391832957,-450.0,0.00019996,2]
[359871188,1746391832967,-490.0,0.00019996,2]
[359871189,1746391832977,-450.0,0.00019996,2]
[359871190,1746391832986,-450.0,0.00019996,2]
[359871191,1746391832995,-384.92931942,0.00019996,2]
[359871192,1746391833007,-65.07068058,0.00019996,2]
[359871193,1746391833017,-450.0,0.00019996,2]
[359871194,1746391833026,-450.0,0.00019996,2]
[359871195,1746391833036,-450.0,0.00019996,2]
[359871196,1746391833045,-450.0,0.00019996,2]
[359871197,1746391833055,-450.0,0.00019996,2]
[359871198,1746391833065,-448.28255351,0.00019996,2]
[359871200,1746391837775,-1.71744649,0.00019996,2]
[359871201,1746391837784,-490.0,0.00019996,2]
[359871202,1746391837794,-51.29715247,0.00019996,2]
[359871203,1746391837805,-398.70284753,0.00019996,2]
[359871204,1746391837815,-450.0,0.00019996,2]
[359871205,1746391837824,-450.0,0.00019996,2]
[359871206,1746391837834,-450.0,0.00019996,2]
[359871207,1746391837843,-450.0,0.00019996,2]
[359871208,1746391837853,-450.0,0.00019996,2]
[359871209,1746391837863,-490.0,0.00019996,2]
[359871210,1746391837873,-490.0,0.00019996,2]
[359871211,1746391837882,-450.0,0.00019996,2]
[359871212,1746391837892,-450.0,0.00019996,2]
[359871213,1746391837901,-576.75316058,0.00019996,2]
[359871214,1746391837911,-450.0,0.00019996,2]
[359871215,1746391837921,-450.0,0.00019996,2]
[359871216,1746391837930,-450.0,0.00019996,2]
[359871217,1746391837939,-450.0,0.00019996,2]
[359871218,1746391837949,-450.0,0.00019996,2]
[359871219,1746391837958,-450.0,0.00019996,2]
[359871220,1746391837968,-492.25947999,0.00019996,2]
[359871221,1746391837977,-450.0,0.00019996,2]
[359871222,1746391837987,-450.0,0.00019996,2]
[359871223,1746391837996,-450.0,0.00019996,2]
[359871224,1746391838006,-450.0,0.00019996,2]
[359871225,1746391838015,-450.0,0.00019996,2]
[359871226,1746391838025,-450.0,0.00019996,2]
[359871227,1746391838034,-450.0,0.00019996,2]
[359871228,1746391838044,-450.0,0.00019996,2]
[359871229,1746391838053,-450.0,0.00019996,2]
[359871230,1746391838063,-450.0,0.00019996,2]
[359871231,1746391838072,-550.0,0.00019996,2]
[359871232,1746391838081,-450.0,0.00019996,2]
[359871233,1746391838090,-450.0,0.00019996,2]
[359871234,1746391838100,-470.0,0.00019996,2]
[359871236,1746391838110,-470.0,0.00019996,2]
[359871237,1746391838119,-450.0,0.00019996,2]
[359871238,1746391838128,-450.0,0.00019996,2]
[359871239,1746391838137,-470.0,0.00019996,2]
[359871240,1746391838146,-450.0,0.00019996,2]
[359871241,1746391838156,-470.0,0.00019996,2]
[359871242,1746391838165,-470.0,0.00019996,2]
[359871243,1746391838174,-470.0,0.00019996,2]
[359871244,1746391838184,-450.0,0.00019996,2]
[359871245,1746391838193,-450.0,0.00019996,2]
[359871246,1746391838202,-569.96,0.00019996,2]
[359871247,1746391838211,-470.0,0.00019996,2]
[359871248,1746391838220,-160.98373594,0.00019996,2]
[359871249,1746391838229,-349.98845529,0.00019996,2]
[359871250,1746391838238,-470.0,0.00019996,2]
[359871251,1746391838247,-470.0,0.00019996,2]
[359871252,1746391838257,-450.0,0.00019996,2]
[359871253,1746391838266,-470.0,0.00019996,2]
[359871254,1746391838275,-450.0,0.00019996,2]
[359871255,1746391838284,-545.62145066,0.00019996,2]
[359871256,1746391838293,-493.05979396,0.00019996,2]
[359871257,1746391838302,-490.0,0.00019996,2]
[359871258,1746391838312,-450.0,0.00019996,2]
[359871259,1746391838321,-450.0,0.00019996,2]
[359871260,1746391838330,-345.45806187,0.00019996,2]
[359871261,1746391838339,-450.0,0.00019996,2]
[359871262,1746391838348,-500.0,0.00019996,2]
[359871263,1746391838357,-450.0,0.00019996,2]
[359871264,1746391838366,-549.19703443,0.00019996,2]
[359871265,1746391838391,-732.47296557,0.00019996,2]
[359871266,1746391838400,-490.0,0.00019996,2]
[359871267,1746391838410,-1161.0270344,0.00019996,2]
[359871268,1746391838420,-4300.95149412,0.00019996,2]
[359871271,1746391839839,-626.84834021,0.00019896,2]
[359871272,1746391839850,-590.35453116,0.00019996,2]
[359871278,1746391842863,-5591.31694032,0.00019996,2]
[359871279,1746391842874,-549.62,0.00019996,2]
[359871280,1746391842884,-470.0,0.00019996,2]
[359871281,1746391842893,-450.0,0.00019996,2]
[359871282,1746391842903,-450.0,0.00019996,2]
[359871283,1746391842913,-490.0,0.00019996,2]
[359871284,1746391842923,-490.0,0.00019996,2]
[359871285,1746391842932,-1019.39,0.00019996,2]
[359871286,1746391842942,-470.0,0.00019996,2]
[359871287,1746391842952,-450.0,0.00019996,2]
[359871288,1746391842962,-424.35910442,0.00019996,2]
[359871291,1746391845735,-626.84834013,0.00019896,2]
[359871292,1746391845748,-25.64089558,0.00019996,2]
[359871293,1746391845758,-1293.05,0.00019996,2]
[359871294,1746391845767,-450.0,0.00019996,2]
[359871295,1746391845777,-450.0,0.00019996,2]
[359871296,1746391845790,-490.0,0.00019996,2]
[359871297,1746391845799,-450.0,0.00019996,2]
[359871298,1746391845809,-450.0,0.00019996,2]
[359871299,1746391845821,-450.0,0.00019996,2]
[359871300,1746391845831,-490.0,0.00019996,2]
[359871301,1746391845840,-240.19560905,0.00019996,2]
[359871302,1746391845862,-249.80439095,0.00019996,2]
[359871303,1746391845871,-450.0,0.00019996,2]
[359871304,1746391845880,-490.0,0.00019996,2]
[359871305,1746391845889,-490.0,0.00019996,2]
[359871306,1746391845899,-490.0,0.00019996,2]
[359871307,1746391845908,-450.0,0.00019996,2]
[359871308,1746391845918,-450.0,0.00019996,2]
[359871309,1746391845927,-393.92167113,0.00019996,2]
[359871310,1746391845936,-450.0,0.00019996,2]
[359871311,1746391845945,-532.85,0.00019996,2]
[359871312,1746391845955,-456.36,0.00019996,2]